[Event "Smuk Skak GM Tournament 2021"]
[Site "Skanderborg, Denmark"]
[Date "2021.08.22"]
[Round "9.3"]
[White "Pedersen, Nicolai Vesterbæk"]
[Black "Ochsner, Bjørn Møller"]
[Result "1/2-1/2"]
[TimeControl "90 minutes + 30 minutes at move 40, 30 secs pr move from move 1"]
[WhiteTitle "IM"]
[BlackTitle "IM"]
[WhiteFideId "1402340"]
[BlackFideId "1416928"]
[WhiteElo "2369"]
[BlackElo "2506"]

1. c4 {[%clk 01:30:54]} {[%emt 00:00:06]} Nf6 {[%clk 01:29:31]} {[%emt
00:01:29]} 2. Nc3 {[%clk 01:31:00]} {[%emt 00:00:24]} g6 {[%clk 01:29:45]}
{[%emt 00:00:15]} 3. e4 {[%clk 01:31:02]} {[%emt 00:00:28]} d6 {[%clk
01:29:48]} {[%emt 00:00:27]} 4. d4 {[%clk 01:31:05]} {[%emt 00:00:27]} Bg7
{[%clk 01:30:11]} {[%emt 00:00:07]} 5. f3 {[%clk 01:28:08]} {[%emt 00:03:27]}
O-O {[%clk 01:30:05]} {[%emt 00:00:36]} 6. Nge2 {[%clk 01:28:21]} {[%emt
00:00:17]} c5 {[%clk 01:30:14]} {[%emt 00:00:21]} 7. d5 {[%clk 01:28:29]}
{[%emt 00:00:23]} e6 {[%clk 01:30:25]} {[%emt 00:00:19]} 8. Ng3 {[%clk
01:28:43]} {[%emt 00:00:15]} exd5 {[%clk 01:30:49]} {[%emt 00:00:07]} 9. cxd5
{[%clk 01:29:04]} {[%emt 00:00:10]} a6 {[%clk 01:31:03]} {[%emt 00:00:15]} 10.
a4 {[%clk 01:29:19]} {[%emt 00:00:15]} Nbd7 {[%clk 01:31:27]} {[%emt 00:00:07]}
11. Be2 {[%clk 01:29:16]} {[%emt 00:00:33]} Ne8 {[%clk 01:31:03]} {[%emt
00:00:53]} 12. O-O {[%clk 01:13:31]} {[%emt 00:16:16]} Nc7 {[%clk 01:30:15]}
{[%emt 00:01:17]} 13. Bf4 {[%clk 01:11:32]} {[%emt 00:02:28]} Qe7 {[%clk
01:20:23]} {[%emt 00:10:23]} 14. Qd2 {[%clk 01:09:27]} {[%emt 00:02:36]} Rb8
{[%clk 01:19:49]} {[%emt 00:01:03]} 15. Bh6 {[%clk 00:55:49]} {[%emt 00:14:08]}
Bxh6 {[%clk 01:15:43]} {[%emt 00:04:37]} 16. Qxh6 {[%clk 00:56:10]} {[%emt
00:00:08]} b5 {[%clk 01:14:18]} {[%emt 00:01:55]} 17. axb5 {[%clk 00:38:37]}
{[%emt 00:18:03]} Nxb5 {[%clk 01:14:21]} {[%emt 00:00:26]} 18. Rf2 {[%clk
00:37:15]} {[%emt 00:01:53]} Qf6 {[%clk 01:07:18]} {[%emt 00:07:33]} 19. Bxb5
{[%clk 00:28:38]} {[%emt 00:09:07]} axb5 {[%clk 01:07:38]} {[%emt 00:00:10]} 20.
f4 {[%clk 00:21:37]} {[%emt 00:07:31]} Qg7 {[%clk 01:05:20]} {[%emt 00:02:48]}
21. Qh4 {[%clk 00:16:54]} {[%emt 00:05:13]} Re8 {[%clk 00:34:41]} {[%emt
00:31:09]} 22. e5 {[%clk 00:08:29]} {[%emt 00:08:55]} f5 {[%clk 00:27:26]}
{[%emt 00:07:45]} 23. Rf3 {[%clk 00:03:10]} {[%emt 00:05:48]} Nf8 {[%clk
00:23:11]} {[%emt 00:04:44]} 24. e6 {[%clk 00:02:01]} {[%emt 00:01:40]} Bb7
{[%clk 00:17:09]} {[%emt 00:06:32]} 25. Rd1 {[%clk 00:01:32]} {[%emt 00:00:59]}
b4 {[%clk 00:16:13]} {[%emt 00:01:26]} 26. Nce2 {[%clk 00:01:35]} {[%emt
00:00:27]} Ra8 {[%clk 00:09:28]} {[%emt 00:07:15]} 27. b3 {[%clk 00:01:43]}
{[%emt 00:00:22]} Ra2 {[%clk 00:07:45]} {[%emt 00:02:12]} 28. Re3 {[%clk
00:02:06]} {[%emt 00:00:07]} Re7 {[%clk 00:02:45]} {[%emt 00:05:30]} 29. Kh1
{[%clk 00:02:20]} {[%emt 00:00:17]} Rb2 {[%clk 00:01:55]} {[%emt 00:01:21]} 30.
Ng1 {[%clk 00:02:40]} {[%emt 00:00:10]} Rxe6 {[%clk 00:01:40]} {[%emt
00:00:45]} 31. Rxe6 {[%clk 00:02:29]} {[%emt 00:00:40]} Nxe6 {[%clk 00:02:08]}
{[%emt 00:00:02]} 32. Nf3 {[%clk 00:02:54]} {[%emt 00:00:05]} Nd4 {[%clk
00:01:36]} {[%emt 00:01:02]} 33. Nxd4 {[%clk 00:02:30]} {[%emt 00:00:54]} cxd4
{[%clk 00:02:05]} {[%emt 00:00:02]} 34. Re1 {[%clk 00:02:05]} {[%emt 00:00:55]}
Qf8 {[%clk 00:00:47]} {[%emt 00:01:47]} 35. h3 {[%clk 00:00:58]} {[%emt
00:01:38]} Bxd5 {[%clk 00:00:43]} {[%emt 00:00:34]} 36. Re7 {[%clk 00:01:17]}
{[%emt 00:00:10]} Bf7 {[%clk 00:00:48]} {[%emt 00:00:25]} 37. Rd7 {[%clk
00:00:42]} {[%emt 00:01:05]} d3 {[%clk 00:00:33]} {[%emt 00:00:45]} 38. Nxf5
{[%clk 00:00:43]} {[%emt 00:00:29]} Rb1+ {[%clk 00:00:56]} {[%emt 00:00:07]} 39.
Kh2 {[%clk 00:01:11]} {[%emt 00:00:01]} gxf5 {[%clk 00:01:19]} {[%emt
00:00:07]} 40. Qg5+ {[%clk 00:01:34]} {[%emt 00:00:07]} Kh8 {[%clk 00:00:34]}
{[%emt 00:01:15]} 41. Qxf5 {[%clk 00:27:48]} {[%emt 00:04:16]} Kg8 {[%clk
00:29:33]} {[%emt 00:01:31]} 42. Qg5+ {[%clk 00:27:16]} {[%emt 00:01:02]} Bg6
{[%clk 00:24:59]} {[%emt 00:05:04]} 43. Qd5+ {[%clk 00:14:32]} {[%emt
00:13:14]} Bf7 {[%clk 00:24:25]} {[%emt 00:01:03]} 44. Qg5+ {[%clk 00:14:14]}
{[%emt 00:00:48]} Bg6 {[%clk 00:24:46]} {[%emt 00:00:10]} 45. Qd5+ {[%clk
00:12:14]} {[%emt 00:02:29]} Bf7 {[%clk 00:25:12]} {[%emt 00:00:05]} 46. Qg5+
{[%clk 00:10:11]} {[%emt 00:02:33]} 1/2-1/2

[Event "Smuk Skak GM Tournament 2021"]
[Site "Skanderborg, Denmark"]
[Date "2021.08.22"]
[Round "9.4"]
[White "Antolak, Julia"]
[Black "Janik, Igor"]
[Result "1/2-1/2"]
[TimeControl "90 minutes + 30 minutes at move 40, 30 secs pr move from move 1"]
[WhiteTitle "WIM"]
[BlackTitle "IM"]
[WhiteFideId "1159569"]
[BlackFideId "1159259"]
[WhiteElo "2340"]
[BlackElo "2500"]

1. e4 {[%clk 01:30:57]} {[%emt 00:00:02]} e5 {[%clk 01:30:42]} {[%emt
00:00:19]} 2. Nf3 {[%clk 01:31:12]} {[%emt 00:00:14]} Nc6 {[%clk 01:31:07]}
{[%emt 00:00:06]} 3. Bb5 {[%clk 01:31:35]} {[%emt 00:00:07]} Nf6 {[%clk
01:31:33]} {[%emt 00:00:04]} 4. O-O {[%clk 01:22:32]} {[%emt 00:09:33]} Nxe4
{[%clk 01:31:21]} {[%emt 00:00:43]} 5. Re1 {[%clk 01:21:12]} {[%emt 00:01:49]}
Nd6 {[%clk 01:31:43]} {[%emt 00:00:08]} 6. Nxe5 {[%clk 01:19:46]} {[%emt
00:01:57]} Be7 {[%clk 01:32:04]} {[%emt 00:00:09]} 7. Bf1 {[%clk 01:18:44]}
{[%emt 00:01:32]} Nxe5 {[%clk 01:32:13]} {[%emt 00:00:22]} 8. Rxe5 {[%clk
01:19:07]} {[%emt 00:00:06]} O-O {[%clk 01:32:33]} {[%emt 00:00:08]} 9. d4
{[%clk 01:17:35]} {[%emt 00:02:03]} Bf6 {[%clk 01:32:54]} {[%emt 00:00:09]} 10.
Re1 {[%clk 01:17:56]} {[%emt 00:00:09]} Re8 {[%clk 01:33:16]} {[%emt 00:00:09]}
11. c3 {[%clk 01:16:53]} {[%emt 00:01:32]} Rxe1 {[%clk 01:31:08]} {[%emt
00:02:39]} 12. Qxe1 {[%clk 01:17:20]} {[%emt 00:00:03]} Ne8 {[%clk 01:28:48]}
{[%emt 00:02:50]} 13. Bf4 {[%clk 01:16:24]} {[%emt 00:01:26]} d5 {[%clk
01:28:54]} {[%emt 00:00:24]} 14. Bd3 {[%clk 01:15:16]} {[%emt 00:01:38]} c6
{[%clk 01:27:44]} {[%emt 00:01:41]} 15. Nd2 {[%clk 01:13:56]} {[%emt 00:01:50]}
g6 {[%clk 01:27:55]} {[%emt 00:00:19]} 16. Be5 {[%clk 01:10:48]} {[%emt
00:03:38]} Ng7 {[%clk 01:27:06]} {[%emt 00:01:16]} 17. Nf3 {[%clk 01:10:13]}
{[%emt 00:01:07]} Bf5 {[%clk 01:25:47]} {[%emt 00:01:48]} 18. Bxf5 {[%clk
01:10:02]} {[%emt 00:00:42]} Nxf5 {[%clk 01:26:06]} {[%emt 00:00:11]} 19. Bxf6
{[%clk 01:10:17]} {[%emt 00:00:16]} Qxf6 {[%clk 01:26:25]} {[%emt 00:00:10]} 20.
Qe5 {[%clk 01:10:05]} {[%emt 00:00:43]} Qxe5 {[%clk 01:25:43]} {[%emt
00:01:12]} 21. Nxe5 {[%clk 01:10:27]} {[%emt 00:00:08]} f6 {[%clk 01:23:11]}
{[%emt 00:03:02]} 22. Nd3 {[%clk 01:09:57]} {[%emt 00:01:00]} Re8 {[%clk
01:22:42]} {[%emt 00:00:59]} 23. Kf1 {[%clk 01:09:37]} {[%emt 00:00:50]} Kf7
{[%clk 01:22:48]} {[%emt 00:00:24]} 24. Re1 {[%clk 01:09:37]} {[%emt 00:00:30]}
Rxe1+ {[%clk 01:22:53]} {[%emt 00:00:25]} 25. Kxe1 {[%clk 01:10:01]} {[%emt
00:00:05]} g5 {[%clk 01:23:14]} {[%emt 00:00:10]} 26. g3 {[%clk 01:10:23]}
{[%emt 00:00:09]} Nd6 {[%clk 01:23:05]} {[%emt 00:00:39]} 27. Ke2 {[%clk
01:10:39]} {[%emt 00:00:14]} Nc4 {[%clk 01:22:22]} {[%emt 00:01:12]} 28. f3
{[%clk 01:10:21]} {[%emt 00:00:48]} Ke7 {[%clk 01:21:15]} {[%emt 00:01:37]} 29.
b3 {[%clk 01:10:34]} {[%emt 00:00:17]} Nd6 {[%clk 01:21:32]} {[%emt 00:00:13]}
30. Nc5 {[%clk 01:10:56]} {[%emt 00:00:08]} b6 {[%clk 01:21:17]} {[%emt
00:00:45]} 31. Nd3 {[%clk 01:11:14]} {[%emt 00:00:12]} Ke6 {[%clk 01:20:44]}
{[%emt 00:01:03]} 32. g4 {[%clk 01:10:52]} {[%emt 00:00:52]} a5 {[%clk
01:18:39]} {[%emt 00:02:36]} 1/2-1/2

[Event "Smuk Skak GM Tournament 2021"]
[Site "Skanderborg, Denmark"]
[Date "2021.08.22"]
[Round "9.5"]
[White "Olsen, Filip Boe"]
[Black "Brunello, Sabino"]
[Result "1/2-1/2"]
[TimeControl "90 minutes + 30 minutes at move 40, 30 secs pr move from move 1"]
[WhiteTitle "IM"]
[BlackTitle "GM"]
[WhiteFideId "1440640"]
[BlackFideId "813613"]
[WhiteElo "2397"]
[BlackElo "2517"]

1. d4 {[%clk 01:30:55]} {[%emt 00:00:03]} d5 {[%clk 01:30:54]} {[%emt
00:00:08]} 2. Nf3 {[%clk 01:31:13]} {[%emt 00:00:11]} Nf6 {[%clk 01:29:45]}
{[%emt 00:01:39]} 3. Bf4 {[%clk 01:31:31]} {[%emt 00:00:11]} c5 {[%clk
01:29:03]} {[%emt 00:01:13]} 4. e3 {[%clk 01:31:29]} {[%emt 00:00:32]} Nc6
{[%clk 01:29:19]} {[%emt 00:00:14]} 5. Nbd2 {[%clk 01:31:47]} {[%emt 00:00:11]}
Nh5 {[%clk 01:18:32]} {[%emt 00:11:18]} 6. dxc5 {[%clk 01:31:54]} {[%emt
00:00:21]} Nxf4 {[%clk 01:18:26]} {[%emt 00:00:37]} 7. exf4 {[%clk 01:32:21]}
{[%emt 00:00:02]} Qa5 {[%clk 01:16:34]} {[%emt 00:02:23]} 8. c4 {[%clk
01:32:21]} {[%emt 00:00:30]} e6 {[%clk 01:11:17]} {[%emt 00:05:47]} 9. a3
{[%clk 01:31:55]} {[%emt 00:00:56]} dxc4 {[%clk 00:57:25]} {[%emt 00:14:23]} 10.
Bxc4 {[%clk 01:30:08]} {[%emt 00:02:16]} Qxc5 {[%clk 00:52:00]} {[%emt
00:05:55]} 11. O-O {[%clk 01:24:23]} {[%emt 00:06:14]} Be7 {[%clk 00:51:19]}
{[%emt 00:01:11]} 12. Rc1 {[%clk 01:22:55]} {[%emt 00:01:58]} Qf5 {[%clk
00:32:32]} {[%emt 00:19:17]} 13. g3 {[%clk 01:20:21]} {[%emt 00:03:04]} O-O
{[%clk 00:30:42]} {[%emt 00:02:20]} 14. Qe2 {[%clk 01:15:47]} {[%emt 00:05:03]}
Rd8 {[%clk 00:25:26]} {[%emt 00:05:47]} 15. Rfd1 {[%clk 01:06:19]} {[%emt
00:09:57]} Bd7 {[%clk 00:24:43]} {[%emt 00:01:14]} 16. Bd3 {[%clk 00:57:19]}
{[%emt 00:09:29]} Qh5 {[%clk 00:24:18]} {[%emt 00:00:55]} 17. Nc4 {[%clk
00:46:30]} {[%emt 00:11:19]} Be8 {[%clk 00:12:58]} {[%emt 00:11:51]} 18. Nce5
{[%clk 00:33:27]} {[%emt 00:13:32]} Nxe5 {[%clk 00:09:28]} {[%emt 00:04:01]} 19.
Nxe5 {[%clk 00:32:31]} {[%emt 00:01:26]} Qxe2 {[%clk 00:08:13]} {[%emt
00:01:46]} 20. Bxe2 {[%clk 00:32:58]} {[%emt 00:00:02]} f6 {[%clk 00:08:14]}
{[%emt 00:00:29]} 21. Nf3 {[%clk 00:30:56]} {[%emt 00:02:31]} Rac8 {[%clk
00:06:54]} {[%emt 00:01:51]} 22. Rxc8 {[%clk 00:26:46]} {[%emt 00:04:40]} Rxc8
{[%clk 00:07:20]} {[%emt 00:00:04]} 23. Nd4 {[%clk 00:27:02]} {[%emt 00:00:13]}
Kf7 {[%clk 00:03:52]} {[%emt 00:03:58]} 24. Kf1 {[%clk 00:10:30]} {[%emt
00:17:01]} Bc5 {[%clk 00:02:36]} {[%emt 00:01:47]} 25. Nb5 {[%clk 00:09:50]}
{[%emt 00:01:10]} Ke7 {[%clk 00:01:14]} {[%emt 00:01:51]} 26. b4 {[%clk
00:06:33]} {[%emt 00:03:47]} a6 {[%clk 00:00:51]} {[%emt 00:00:53]} 27. bxc5
{[%clk 00:06:35]} {[%emt 00:00:27]} axb5 {[%clk 00:00:54]} {[%emt 00:00:27]} 28.
Bf3 {[%clk 00:06:23]} {[%emt 00:00:42]} Rxc5 {[%clk 00:00:49]} {[%emt
00:00:35]} 29. Bxb7 {[%clk 00:06:44]} {[%emt 00:00:09]} Rc7 {[%clk 00:00:44]}
{[%emt 00:00:35]} 30. Be4 {[%clk 00:06:17]} {[%emt 00:00:56]} f5 {[%clk
00:01:05]} {[%emt 00:00:10]} 31. Bb1 {[%clk 00:04:28]} {[%emt 00:02:19]} Ra7
{[%clk 00:01:06]} {[%emt 00:00:29]} 32. Re1 {[%clk 00:04:48]} {[%emt 00:00:10]}
g6 {[%clk 00:01:22]} {[%emt 00:00:14]} 33. Re3 {[%clk 00:04:52]} {[%emt
00:00:25]} Kd6 {[%clk 00:01:34]} {[%emt 00:00:19]} 34. Ke1 {[%clk 00:04:59]}
{[%emt 00:00:23]} Bc6 {[%clk 00:01:44]} {[%emt 00:00:20]} 35. Rb3 {[%clk
00:03:14]} {[%emt 00:02:15]} Kc5 {[%clk 00:01:18]} {[%emt 00:00:57]} 36. Bd3
{[%clk 00:02:43]} {[%emt 00:01:01]} h6 {[%clk 00:00:59]} {[%emt 00:00:50]} 37.
h4 {[%clk 00:02:38]} {[%emt 00:00:34]} Re7 {[%clk 00:00:38]} {[%emt 00:00:51]}
1/2-1/2